Buisness Unit ,Buisness Code,Service Label,Service Code,Organisational Unit,Expenditure  ,Transaction Number,Supplier ID,Net Payment ,Payment Date,Supplier Name
North West Leicestershire District Council,31UH,HS,Housing Strategy,Community - Housing Strategy,Grants,1286937,A000780,"4,905.00",02/07/2014,Homestart (N.W. Leics)
North West Leicestershire District Council,31UH,HRAHM,Housing,HRA Housing Management,Water Charges (Metered),1286939,A001468,"2,331.81",02/07/2014,Severn Trent Water Limited
North West Leicestershire District Council,31UH,EES,Environmental Health,Environmental Services,Grants,1286942,A027781,"8,034.00",02/07/2014,J Rennocks & Son Ltd
North West Leicestershire District Council,31UH,EEHL,Environmental Health,Environmental Health & Licensing,Grants,1286896,A038916,"3,629.00",02/07/2014,MFW Building Services Ltd
North West Leicestershire District Council,31UH,EEHL,Environmental Health,Environmental Health & Licensing,Grants,1286895,A041542,"3,900.00",02/07/2014,Castle Plumbing
North West Leicestershire District Council,31UH,EEHL,Environmental Health,Environmental Health & Licensing,Grants,1286894,A038469,"3,505.00",02/07/2014,Leicestershire County Council
North West Leicestershire District Council,31UH,EEHL,Environmental Health,Environmental Health & Licensing,Grants,1286893,A038668,"1,707.97",02/07/2014,Adaptions
North West Leicestershire District Council,31UH,LDLS,Legal & Democratic,Legal Services,External Legal Fees & Advice,1286882,A041538,"1,060.00",02/07/2014,Shakespeares
North West Leicestershire District Council,31UH,LDLS,Legal & Democratic,Legal Services,Interim Support,1286881,A041538,"1,662.00",02/07/2014,Shakespeares
North West Leicestershire District Council,31UH,LDLS,Legal & Democratic,Legal Services,Interim Support,1286879,A041538,602.00,02/07/2014,Shakespeares
North West Leicestershire District Council,31UH,HLC,Leisure Centres,Hermitage Leisure Centre,Telephone Charge / Rental,1286873,A000233,"1,187.88",02/07/2014,British Telecommunications P
North West Leicestershire District Council,31UH,HLC,Leisure Centres,Hermitage Leisure Centre,Water Charges (Metered),1286872,A001468,"1,730.28",02/07/2014,Severn Trent Water Limited
North West Leicestershire District Council,31UH,EXCH,Finance,Exchequer Services,Agency Staff,1286865,A036958,"9,925.03",02/07/2014,Comensura Limited
North West Leicestershire District Council,31UH,HLC,Leisure Centres,Hermitage Leisure Centre,Water Charges (Metered),1286841,A001468,673.00,02/07/2014,Severn Trent Water Limited
North West Leicestershire District Council,31UH,HLC,Leisure Centres,Hermitage Leisure Centre,Water Charges (Metered),1286840,A001468,673.00,02/07/2014,Severn Trent Water Limited
North West Leicestershire District Council,31UH,HLC,Leisure Centres,Hermitage Leisure Centre,Electricity,1286839,A030266,"2,519.57",02/07/2014,Southern Electric
North West Leicestershire District Council,31UH,HRAHM,Housing,HRA Housing Management,Furniture,1287211,A041370,"1,113.80",02/07/2014,Custom Group Ltd
North West Leicestershire District Council,31UH,HR,Corporate Director,Human Resources,Officers,1287312,A012097,"7,750.00",02/07/2014,CSM (Basingstoke Ltd) T/A Archie Moss
North West Leicestershire District Council,31UH,ECP,Planning & Development,Environment Community Planning,External Legal Fees & Advice,1287342,A034291,"3,625.00",02/07/2014,Valuation Office Agency
North West Leicestershire District Council,31UH,ECP,Planning & Development,Environment Community Planning,External Legal Fees & Advice,1287343,A034291,"3,498.46",02/07/2014,Valuation Office Agency
North West Leicestershire District Council,31UH,ECP,Planning & Development,Environment Community Planning,External Legal Fees & Advice,1287344,A034291,"1,975.72",02/07/2014,Valuation Office Agency
North West Leicestershire District Council,31UH,ECP,Planning & Development,Environment Community Planning,External Legal Fees & Advice,1287345,A034291,"3,495.87",02/07/2014,Valuation Office Agency
North West Leicestershire District Council,31UH,ECP,Planning & Development,Environment Community Planning,Tree Officer,1287346,A000770,"1,372.92",02/07/2014,Hinckley & Bosworth Boroug
North West Leicestershire District Council,31UH,HRAPBS,Housing,HRA Performance & Business Support,Insurance - Tenants Contributions,1287374,A037657,"8,621.13",09/07/2014,Jardine Lloyd Thompson
North West Leicestershire District Council,31UH,CS,Communications,Corporate - Customer Services,Postages,1287382,A000079,"4,000.00",09/07/2014,Neopost Limited
North West Leicestershire District Council,31UH,LDLS,Legal & Democratic,Legal Services,Interim Support,1287354,A041538,552.00,09/07/2014,Shakespeares
North West Leicestershire District Council,31UH,EPP,Planning & Development,Environment Planning Policy,Salaries - Gross Pay,1287359,A030087,"4,134.36",09/07/2014,Nottingham Trent University
North West Leicestershire District Council,31UH,EPP,Planning & Development,Environment Planning Policy,Salaries - Gross Pay,1287360,A030087,"4,134.36",09/07/2014,Nottingham Trent University
North West Leicestershire District Council,31UH,NACN,Neighbourhoods & Communities,N & C Neighbourhoods,Grant - Mantle Arts,1287361,A001039,"3,500.00",09/07/2014,Mantle Community Arts Limit
North West Leicestershire District Council,31UH,LDLS,Legal & Democratic,Legal Services,External Legal Fees & Advice,1287369,A041538,"1,652.00",09/07/2014,Shakespeares
North West Leicestershire District Council,31UH,EXCH,Finance,Exchequer Services,Agency Staff,1287373,A036958,"18,195.27",09/07/2014,Comensura Limited
North West Leicestershire District Council,31UH,EXCH,Finance,Exchequer Services,Other Miscellaneous Expenses,1287436,A010859,"2,292.05",09/07/2014,Selima Limited
North West Leicestershire District Council,31UH,HRAHM,Housing,HRA Housing Management,Expenditure against earmarked reserve,1287438,A035881,875.00,09/07/2014,Willesley Estate TARA
North West Leicestershire District Council,31UH,HRAHRM,Housing Repairs,HRA Housing Repairs & Maintenance,Housing Repairs,1287669,A039980,"482,479.96",09/07/2014,Kier Services Maintenance East Ltd
North West Leicestershire District Council,31UH,HRAHRM,Housing Repairs,HRA Housing Repairs & Maintenance,Decent Home Project,1287670,A039980,"16,385.30",09/07/2014,Kier Services Maintenance East Ltd
North West Leicestershire District Council,31UH,HRAHRM,Housing Repairs,HRA Housing Repairs & Maintenance,Decent Home Project,1287671,A039973,"561,736.79",09/07/2014,Lovell Partnerships Ltd
North West Leicestershire District Council,31UH,CULTIC,Leisure & Culture,Cultural Services TIC,Theatre Tickets,1287689,A030722,747.90,09/07/2014,AFFC
North West Leicestershire District Council,31UH,EES,Environmental Health,Environmental Services,Grants,1287481,A038386,960.00,09/07/2014,David Kirton Designs
North West Leicestershire District Council,31UH,EES,Environmental Health,Environmental Services,Grants,1287482,A001092,"2,642.22",09/07/2014,John Merison BMC
North West Leicestershire District Council,31UH,EES,Environmental Health,Environmental Services,Grants,1287483,A001092,"3,492.32",09/07/2014,John Merison BMC
North West Leicestershire District Council,31UH,EXCH,Finance,Exchequer Services,Expenditure against earmarked reserve,1287440,A010859,"1,700.00",09/07/2014,Selima Limited
North West Leicestershire District Council,31UH,HRAHRM,Housing Repairs,HRA Housing Repairs & Maintenance,Consultants Fees,1287491,A039980,636.15,09/07/2014,Kier Services Maintenance East Ltd
North West Leicestershire District Council,31UH,PROPFM,Property Services,Property Facilities Management,Electricity,1287659,A030266,"3,865.69",09/07/2014,Southern Electric
North West Leicestershire District Council,31UH,CULTYP,Leisure & Culture,Cultural Services Children & YoungPeople,Extended Services,1287661,A000780,"7,600.00",09/07/2014,Homestart (N.W. Leics)
North West Leicestershire District Council,31UH,CULTYP,Leisure & Culture,Cultural Services Children & YoungPeople,Extended Services,1287662,A000780,"1,798.20",09/07/2014,Homestart (N.W. Leics)
North West Leicestershire District Council,31UH,CULTYP,Leisure & Culture,Cultural Services Children & YoungPeople,Extended Services,1287663,A000780,"7,497.60",09/07/2014,Homestart (N.W. Leics)
North West Leicestershire District Council,31UH,CULTYP,Leisure & Culture,Cultural Services Children & YoungPeople,Locality Partnership Co-ord,1287665,A000434,926.00,09/07/2014,Crestline Printers Limited
North West Leicestershire District Council,31UH,EES,Environmental Health,Environmental Services,Private Owners,1287791,A037057,"4,950.23",09/07/2014,D'Zign Uk Group
North West Leicestershire District Council,31UH,PROPCL,Property Services,Property Commercial Lettings,Telephones,1287695,A000233,678.84,09/07/2014,British Telecommunications P
North West Leicestershire District Council,31UH,HR,Corporate Director,Human Resources,Criminal Records Bureau,1287683,A027625,746.00,08/07/2014,The Disclosure & Barring Service
North West Leicestershire District Council,31UH,EXCH,Finance,Exchequer Services,Gas,1287687,A000958,"5,205.69",08/07/2014,ESPO
North West Leicestershire District Council,31UH,EES,Environmental Health,Environmental Services,Contaminated Land Officer,1287839,A008631,"5,075.53",16/07/2014,Harborough District Council
North West Leicestershire District Council,31UH,EXCH,Finance,Exchequer Services,Agency Staff,1287844,A036958,"17,486.15",16/07/2014,Comensura Limited
North West Leicestershire District Council,31UH,ECCTV,Planning & Development,Environment - Town Centre/CCTV,Water Charges (Metered),1287849,A001468,787.84,16/07/2014,Severn Trent Water Limited
North West Leicestershire District Council,31UH,ICT,Information Technology,ICT Services,Telephone Charge / Rental,1287853,A008908,"5,769.27",16/07/2014,Virgin Media Business
North West Leicestershire District Council,31UH,HR,Corporate Director,Human Resources,Items To Be Leased,1287860,A035549,"2,510.99",16/07/2014,Arnold Clark Vehicle Management
North West Leicestershire District Council,31UH,HR,Corporate Director,Human Resources,Items To Be Leased,1287861,A035549,"3,166.11",16/07/2014,Arnold Clark Vehicle Management
North West Leicestershire District Council,31UH,HR,Corporate Director,Human Resources,Items To Be Leased,1287862,A035549,"3,024.81",16/07/2014,Arnold Clark Vehicle Management
North West Leicestershire District Council,31UH,ECCTV,Planning & Development,Environment - Town Centre/CCTV,Agency Staff,1286391,A038132,"4,028.99",16/07/2014,Premier Security Services (Midlands) Lim
North West Leicestershire District Council,31UH,HRAHM,Housing,HRA Housing Management,Contract Cleaning,1287895,A000950,"2,655.23",16/07/2014,Leicestershire County Council
North West Leicestershire District Council,31UH,HRAHM,Housing,HRA Housing Management,Contract Cleaning,1287896,A000950,"5,724.77",16/07/2014,Leicestershire County Council
North West Leicestershire District Council,31UH,EES,Environmental Health,Environmental Services,Grants,1287975,A038386,690.00,16/07/2014,David Kirton Designs
North West Leicestershire District Council,31UH,EES,Environmental Health,Environmental Services,Grants,1287976,A001092,883.42,16/07/2014,John Merison BMC
North West Leicestershire District Council,31UH,HPLC,Leisure Centres,Hood Park Leisure Centre,Electricity,1287978,A030266,"1,788.83",16/07/2014,Southern Electric
North West Leicestershire District Council,31UH,HPLC,Leisure Centres,Hood Park Leisure Centre,Water Charges (Metered),1287979,A001468,830.00,16/07/2014,Severn Trent Water Limited
North West Leicestershire District Council,31UH,HLC,Leisure Centres,Hermitage Leisure Centre,Water Charges (Metered),1287980,A001468,673.00,16/07/2014,Severn Trent Water Limited
North West Leicestershire District Council,31UH,EEHL,Environmental Health,Environmental Health & Licensing,Grants,1287914,A038668,"1,979.98",16/07/2014,Adaptions
North West Leicestershire District Council,31UH,HS,Housing Strategy,Community - Housing Strategy,Grants,1287916,A013575,"1,012.00",16/07/2014,North West Leicestershire
North West Leicestershire District Council,31UH,HS,Housing Strategy,Community - Housing Strategy,Grants,1287917,A000530,"9,350.00",16/07/2014,East Midlands Housing Assocn
North West Leicestershire District Council,31UH,EXCH,Finance,Exchequer Services,Collection - Cash,1288193,A004468,"1,142.19",16/07/2014,Kings Armoured Security Ser
North West Leicestershire District Council,31UH,HRAHM,Housing,HRA Housing Management,Gas,1288194,A032924,701.89,16/07/2014,Scottish Power
North West Leicestershire District Council,31UH,EXCH,Finance,Exchequer Services,Agency Staff,1288195,A036958,"14,190.73",16/07/2014,Comensura Limited
North West Leicestershire District Council,31UH,EXCH,Finance,Exchequer Services,Computing,1288009,A010859,"8,000.00",16/07/2014,Selima Limited
North West Leicestershire District Council,31UH,EXCH,Finance,Exchequer Services,Computing,1288028,A040684,812.85,16/07/2014,Ultra Electronics AEP Payments Ltd
North West Leicestershire District Council,31UH,EXCH,Finance,Exchequer Services,Gas,1288049,A035709,"15,535.20",15/07/2014,Corona Energy Retail 4 Ltd
North West Leicestershire District Council,31UH,ENOT,Street Management,Environment Transport,Licences - Road Fund Licence,1288038,A008559,"3,050.00",16/07/2014,Post Office Limited
North West Leicestershire District Council,31UH,ICT,Information Technology,ICT Services,Equipment Operating Leases,1288046,A001301,"1,167.59",15/07/2014,The Danwood Group Ltd
North West Leicestershire District Council,31UH,ENOP,Street Management,Environment Parks,Miscellaneous Insurances,1288223,A001836,690.84,23/07/2014,Zurich Insurance Company
North West Leicestershire District Council,31UH,ENOT,Street Management,Environment Transport,Purchases,1288428,A037391,602.90,23/07/2014,Emo Oil Limited
North West Leicestershire District Council,31UH,HRAHM,Housing,HRA Housing Management,Miscellaneous,1288221,A039091,816.00,23/07/2014,Energico
North West Leicestershire District Council,31UH,ECCTV,Planning & Development,Environment - Town Centre/CCTV,Electricity,1288222,A030266,904.15,23/07/2014,Southern Electric
North West Leicestershire District Council,31UH,EXCH,Finance,Exchequer Services,Electricity,1288209,A034733,"3,657.71",23/07/2014,British Gas Business
North West Leicestershire District Council,31UH,HRAHM,Housing,HRA Housing Management,Postages,1288520,A000079,"6,000.00",23/07/2014,Neopost Limited
North West Leicestershire District Council,31UH,HPLC,Leisure Centres,Hood Park Leisure Centre,Water Charges (Metered),1288490,A001468,830.00,23/07/2014,Severn Trent Water Limited
North West Leicestershire District Council,31UH,HPLC,Leisure Centres,Hood Park Leisure Centre,Water Charges (Metered),1288491,A001468,"1,090.16",23/07/2014,Severn Trent Water Limited
North West Leicestershire District Council,31UH,LCM,Leisure & Culture,Leisure & Cult Mangt,Grants,1288514,A041115,"5,390.00",23/07/2014,Age Concern Leics & Rutland
North West Leicestershire District Council,31UH,HLC,Leisure Centres,Hermitage Leisure Centre,Electricity,1288473,A030266,"2,476.37",23/07/2014,Southern Electric
North West Leicestershire District Council,31UH,LCM,Leisure & Culture,Leisure & Cult Mangt,Swimming Pool Grant,1288475,A029866,"7,500.00",23/07/2014,LCC Ibstock Community College
North West Leicestershire District Council,31UH,CULTYP,Leisure & Culture,Cultural Services Children & YoungPeople,Extended Services,1288479,A040553,"2,017.20",23/07/2014,Leicestershire CAB
North West Leicestershire District Council,31UH,HLC,Leisure Centres,Hermitage Leisure Centre,Water Charges (Metered),1288480,A001468,"1,471.12",23/07/2014,Severn Trent Water Limited
North West Leicestershire District Council,31UH,HRAHRM,Housing Repairs,HRA Housing Repairs & Maintenance,Tipping Charges,1288482,A035471,"2,880.40",23/07/2014,Ward Recycling
North West Leicestershire District Council,31UH,CULTYP,Leisure & Culture,Cultural Services Children & YoungPeople,Extended Services,1288476,A035950,"8,221.50",23/07/2014,Kimbles Music & Movement Ltd
North West Leicestershire District Council,31UH,CULTYP,Leisure & Culture,Cultural Services Children & YoungPeople,Extended Services,1288477,A028026,"3,074.00",23/07/2014,LCC Warren Hills Primary School
North West Leicestershire District Council,31UH,CULTYP,Leisure & Culture,Cultural Services Children & YoungPeople,Extended Services,1288478,A035950,"4,185.00",23/07/2014,Kimbles Music & Movement Ltd
North West Leicestershire District Council,31UH,ECP,Planning & Development,Environment Community Planning,External Legal Fees & Advice,1288515,A034291,"2,489.13",23/07/2014,Valuation Office Agency
North West Leicestershire District Council,31UH,ECP,Planning & Development,Environment Community Planning,Tree Officer,1288516,A000770,"1,372.92",23/07/2014,Hinckley & Bosworth Boroug
North West Leicestershire District Council,31UH,CULTEV,Leisure & Culture,Cultural Services Arts & Events,Civic Functions,1288531,A040433,"1,309.00",23/07/2014,Quadrant Events Ltd
North West Leicestershire District Council,31UH,EEHL,Environmental Health,Environmental Health & Licensing,Stray Dog Service,1288594,A000385,"1,258.14",23/07/2014,College Garth Boarding Kenn
North West Leicestershire District Council,31UH,EXCH,Finance,Exchequer Services,Agency Staff,1288625,A036958,"10,863.17",30/07/2014,Comensura Limited
North West Leicestershire District Council,31UH,EDC,Planning & Development,Environment - Development Control,External Legal Fees & Advice,1288630,A034291,"2,458.53",30/07/2014,Valuation Office Agency
North West Leicestershire District Council,31UH,ECP,Planning & Development,Environment Community Planning,External Legal Fees & Advice,1288631,A034291,589.55,30/07/2014,Valuation Office Agency
North West Leicestershire District Council,31UH,ECP,Planning & Development,Environment Community Planning,LCC Payments,1288632,A032695,"7,669.73",30/07/2014,Lichfield District Council
North West Leicestershire District Council,31UH,HRAHRM,Housing Repairs,HRA Housing Repairs & Maintenance,Hire Of Operational Equipment,1288682,A038405,550.00,30/07/2014,Emperor Scaffolding Limited
North West Leicestershire District Council,31UH,NACN,Neighbourhoods & Communities,N & C Neighbourhoods,Positive Activities for Young People Exp,1288718,A032847,"4,000.00",30/07/2014,Friends of Holly Hayes Wood
North West Leicestershire District Council,31UH,EXCH,Finance,Exchequer Services,Computing,1288604,A040684,812.85,23/07/2014,Ultra Electronics AEP Payments Ltd
North West Leicestershire District Council,31UH,ESS,Street Management,Environment - Street Scene,Water Charges (Metered),1288608,A001468,553.44,23/07/2014,Severn Trent Water Limited
North West Leicestershire District Council,31UH,LDLS,Legal & Democratic,Legal Services,External Legal Fees & Advice,1289036,A022238,750.00,30/07/2014,No 5 Chambers Ltd
North West Leicestershire District Council,31UH,HRAHRM,Housing Repairs,HRA Housing Repairs & Maintenance,General Materials,1289098,A036453,"29,799.43",29/07/2014,Collective Enterprises Ltd
North West Leicestershire District Council,31UH,EXCH,Finance,Exchequer Services,Deductions Paid Over,1289082,A000951,"20,000.00",30/07/2014,Leicestershire County Counc
North West Leicestershire District Council,31UH,HR,Corporate Director,Human Resources,Items To Be Leased,1289083,A035549,"2,973.35",30/07/2014,Arnold Clark Vehicle Management
North West Leicestershire District Council,31UH,HRAHRM,Housing Repairs,HRA Housing Repairs & Maintenance,Wiring - Rewire & Consumer Unit,1289111,A039973,"3,375.89",30/07/2014,Lovell Partnerships Ltd
North West Leicestershire District Council,31UH,HRAHRM,Housing Repairs,HRA Housing Repairs & Maintenance,Solid Fuel Servicing ,1286956,A035675,675.00,02/07/2014,Elite Sweep Service
North West Leicestershire District Council,31UH,HRAHRM,Housing Repairs,HRA Housing Repairs & Maintenance,Solid Fuel Servicing ,1286955,A035675,"5,995.00",02/07/2014,Elite Sweep Service
North West Leicestershire District Council,31UH,HRAHRM,Housing Repairs,HRA Housing Repairs & Maintenance,House cleaning and removals,1286953,A031086,890.50,02/07/2014,Premier Waste and Recycling
North West Leicestershire District Council,31UH,HRAHRM,Housing Repairs,HRA Housing Repairs & Maintenance,House cleaning and removals,1286952,A031086,"1,344.79",02/07/2014,Premier Waste and Recycling
North West Leicestershire District Council,31UH,HRAHRM,Housing Repairs,HRA Housing Repairs & Maintenance,Window repairs and Maintenance,1287508,A036741,610.56,09/07/2014,SBP Limited (Trading as Plastal & Permad
North West Leicestershire District Council,31UH,HRAHRM,Housing Repairs,HRA Housing Repairs & Maintenance,House cleaning and removals,1287500,A031086,919.73,09/07/2014,Premier Waste and Recycling
North West Leicestershire District Council,31UH,HRAHRM,Housing Repairs,HRA Housing Repairs & Maintenance,House cleaning and removals,1287501,A031086,719.49,09/07/2014,Premier Waste and Recycling
North West Leicestershire District Council,31UH,HRAHRM,Housing Repairs,HRA Housing Repairs & Maintenance,House cleaning and removals,1287502,A031086,"1,601.16",09/07/2014,Premier Waste and Recycling
North West Leicestershire District Council,31UH,HRAHRM,Housing Repairs,HRA Housing Repairs & Maintenance,Boiler - Gas,1287505,A026237,622.33,09/07/2014,British Gas Trading Limited
North West Leicestershire District Council,31UH,HRAHRM,Housing Repairs,HRA Housing Repairs & Maintenance,Window repairs and Maintenance,1287507,A036741,542.10,09/07/2014,SBP Limited (Trading as Plastal & Permad
North West Leicestershire District Council,31UH,HRAHRM,Housing Repairs,HRA Housing Repairs & Maintenance,House cleaning and removals,1287493,A031086,761.58,09/07/2014,Premier Waste and Recycling
North West Leicestershire District Council,31UH,HRAHRM,Housing Repairs,HRA Housing Repairs & Maintenance,Gas Maintenance and Repairs,1287535,A033342,871.14,09/07/2014,J Tomlinson Ltd
North West Leicestershire District Council,31UH,HRAHRM,Housing Repairs,HRA Housing Repairs & Maintenance,Gas Maintenance and Repairs,1287536,A033342,871.14,09/07/2014,J Tomlinson Ltd
North West Leicestershire District Council,31UH,HRAHRM,Housing Repairs,HRA Housing Repairs & Maintenance,Gas Maintenance and Repairs,1287537,A033342,871.14,09/07/2014,J Tomlinson Ltd
North West Leicestershire District Council,31UH,HRAHRM,Housing Repairs,HRA Housing Repairs & Maintenance,Gas Maintenance and Repairs,1287538,A033342,871.14,09/07/2014,J Tomlinson Ltd
North West Leicestershire District Council,31UH,HRAHRM,Housing Repairs,HRA Housing Repairs & Maintenance,Gas Maintenance and Repairs,1287539,A033342,871.14,09/07/2014,J Tomlinson Ltd
North West Leicestershire District Council,31UH,HRAHRM,Housing Repairs,HRA Housing Repairs & Maintenance,Gas Maintenance and Repairs,1287540,A033342,871.14,09/07/2014,J Tomlinson Ltd
North West Leicestershire District Council,31UH,HRAHRM,Housing Repairs,HRA Housing Repairs & Maintenance,Gas Maintenance and Repairs,1287542,A033342,871.14,09/07/2014,J Tomlinson Ltd
North West Leicestershire District Council,31UH,HRAHRM,Housing Repairs,HRA Housing Repairs & Maintenance,Gas Maintenance and Repairs,1287543,A033342,871.14,09/07/2014,J Tomlinson Ltd
North West Leicestershire District Council,31UH,HRAHRM,Housing Repairs,HRA Housing Repairs & Maintenance,Gas Maintenance and Repairs,1287545,A033342,871.14,09/07/2014,J Tomlinson Ltd
North West Leicestershire District Council,31UH,HRAHRM,Housing Repairs,HRA Housing Repairs & Maintenance,Gas Maintenance and Repairs,1287541,A033342,871.14,09/07/2014,J Tomlinson Ltd
North West Leicestershire District Council,31UH,HRAHRM,Housing Repairs,HRA Housing Repairs & Maintenance,Housing Repairs,1287595,A031787,"1,583.48",09/07/2014,Laker BMS Ltd
North West Leicestershire District Council,31UH,HRAHRM,Housing Repairs,HRA Housing Repairs & Maintenance,Housing Repairs,1287600,A031787,"1,357.00",09/07/2014,Laker BMS Ltd
North West Leicestershire District Council,31UH,HRAHRM,Housing Repairs,HRA Housing Repairs & Maintenance,Housing Repairs,1287601,A031787,579.92,09/07/2014,Laker BMS Ltd
North West Leicestershire District Council,31UH,HRAHRM,Housing Repairs,HRA Housing Repairs & Maintenance,Housing Repairs,1287616,A031787,621.00,09/07/2014,Laker BMS Ltd
North West Leicestershire District Council,31UH,HRAHRM,Housing Repairs,HRA Housing Repairs & Maintenance,House cleaning and removals,1287924,A031086,"1,857.78",16/07/2014,Premier Waste and Recycling
North West Leicestershire District Council,31UH,HRAHRM,Housing Repairs,HRA Housing Repairs & Maintenance,Boiler - Gas,1288350,A026237,622.33,23/07/2014,British Gas Trading Limited
North West Leicestershire District Council,31UH,HRAHRM,Housing Repairs,HRA Housing Repairs & Maintenance,Boiler - Gas,1288351,A026237,622.33,23/07/2014,British Gas Trading Limited
North West Leicestershire District Council,31UH,HRAHRM,Housing Repairs,HRA Housing Repairs & Maintenance,Door Entry Systems,1288354,A028261,641.11,23/07/2014,TECSERV UK LIMITED
North West Leicestershire District Council,31UH,HRAHRM,Housing Repairs,HRA Housing Repairs & Maintenance,Solid Fuel Servicing ,1288358,A035675,530.00,23/07/2014,Elite Sweep Service
North West Leicestershire District Council,31UH,HRAHRM,Housing Repairs,HRA Housing Repairs & Maintenance,Solid Fuel Servicing ,1288359,A035675,580.00,23/07/2014,Elite Sweep Service
North West Leicestershire District Council,31UH,HRAHRM,Housing Repairs,HRA Housing Repairs & Maintenance,Gas Maintenance and Repairs,1288362,A033342,"6,168.32",23/07/2014,J Tomlinson Ltd
North West Leicestershire District Council,31UH,HRAHRM,Housing Repairs,HRA Housing Repairs & Maintenance,House cleaning and removals,1288376,A031086,"1,005.78",23/07/2014,Premier Waste and Recycling
North West Leicestershire District Council,31UH,HRAHRM,Housing Repairs,HRA Housing Repairs & Maintenance,Housing Repairs,1288389,A031787,"1,804.35",23/07/2014,Laker BMS Ltd
North West Leicestershire District Council,31UH,HRAHRM,Housing Repairs,HRA Housing Repairs & Maintenance,Housing Repairs,1288418,A031787,720.00,23/07/2014,Laker BMS Ltd
North West Leicestershire District Council,31UH,HRAHRM,Housing Repairs,HRA Housing Repairs & Maintenance,House cleaning and removals,1288740,A031086,582.80,30/07/2014,Premier Waste and Recycling
North West Leicestershire District Council,31UH,HRAHRM,Housing Repairs,HRA Housing Repairs & Maintenance,House cleaning and removals,1288739,A031086,575.09,30/07/2014,Premier Waste and Recycling
North West Leicestershire District Council,31UH,HRAHRM,Housing Repairs,HRA Housing Repairs & Maintenance,House cleaning and removals,1288736,A031086,"1,519.25",30/07/2014,Premier Waste and Recycling
North West Leicestershire District Council,31UH,HRAHRM,Housing Repairs,HRA Housing Repairs & Maintenance,Housing Repairs,1289012,A031787,668.17,30/07/2014,Laker BMS Ltd
North West Leicestershire District Council,31UH,HRAHRM,Housing Repairs,HRA Housing Repairs & Maintenance,Housing Repairs,1289019,A031787,"2,805.73",30/07/2014,Laker BMS Ltd
North West Leicestershire District Council,31UH,HRAHRM,Housing Repairs,HRA Housing Repairs & Maintenance,Window repairs and Maintenance,1289021,A036741,630.19,30/07/2014,SBP Limited (Trading as Plastal & Permad
North West Leicestershire District Council,31UH,HRAHRM,Housing Repairs,HRA Housing Repairs & Maintenance,Window repairs and Maintenance,1289022,A036741,630.19,30/07/2014,SBP Limited (Trading as Plastal & Permad
North West Leicestershire District Council,31UH,HRAHRM,Housing Repairs,HRA Housing Repairs & Maintenance,Roofing repairs,1289023,A036945,"5,929.57",30/07/2014,Apollo Property Services Group Limited
North West Leicestershire District Council,31UH,HRAHRM,Housing Repairs,HRA Housing Repairs & Maintenance,Roofing repairs,1289024,A036945,"5,661.69",30/07/2014,Apollo Property Services Group Limited
North West Leicestershire District Council,31UH,HRAHRM,Housing Repairs,HRA Housing Repairs & Maintenance,Pitched Roofs - InterlockingTiles,1289026,A036945,"4,177.00",30/07/2014,Apollo Property Services Group Limited
North West Leicestershire District Council,31UH,HRAHRM,Housing Repairs,HRA Housing Repairs & Maintenance,Doors repair and maintenance,1289030,A038041,539.91,30/07/2014,I G Doors Limited
North West Leicestershire District Council,31UH,HRAHRM,Housing Repairs,HRA Housing Repairs & Maintenance,Doors repair and maintenance,1289034,A038041,828.58,30/07/2014,I G Doors Limited
North West Leicestershire District Council,31UH,HRAHRM,Housing Repairs,HRA Housing Repairs & Maintenance,Pitched Roofs - InterlockingTiles,1289025,A036945,"5,661.69",30/07/2014,Apollo Property Services Group Limited
North West Leicestershire District Council,31UH,HPLC,Leisure Centres,Hood Park Leisure Centre,Service Contracts,1286852,A038408,545.00,02/07/2014,London Fire Consultants & Design
North West Leicestershire District Council,31UH,ICT,Information Technology,ICT Services,Admin Equipment - Maintenance,1286853,A034753,"2,812.50",02/07/2014,ANS Group Plc
North West Leicestershire District Council,31UH,PROPFM,Property Services,Property Facilities Management,Contract Payments (Other) Ext,1286855,A030887,"4,393.06",02/07/2014,T Denman & Sons (Melton Mowbray) Ltd
North West Leicestershire District Council,31UH,PROPFM,Property Services,Property Facilities Management,Contract Payments (Other) Ext,1286856,A030887,"7,768.75",02/07/2014,T Denman & Sons (Melton Mowbray) Ltd
North West Leicestershire District Council,31UH,LDCE,Legal & Democratic,Civic Expenses,Other Miscellaneous Expenses,1286851,A000434,670.00,02/07/2014,Crestline Printers Limited
North West Leicestershire District Council,31UH,ENOWM,Street Management,Environment Waste Management,Expenditure against earmarked reserve,1284072,A041243,"9,715.00",02/07/2014,Whitespace Work Software Ltd
North West Leicestershire District Council,31UH,ENOWM,Street Management,Environment Waste Management,Operational Equipment,1284073,A041243,"5,707.20",02/07/2014,Whitespace Work Software Ltd
North West Leicestershire District Council,31UH,ENOWM,Street Management,Environment Waste Management,Expenditure against earmarked reserve,1284074,A041243,"6,918.82",02/07/2014,Whitespace Work Software Ltd
North West Leicestershire District Council,31UH,ENOWM,Street Management,Environment Waste Management,Expenditure against earmarked reserve,1284628,A041243,"3,000.00",02/07/2014,Whitespace Work Software Ltd
North West Leicestershire District Council,31UH,ENOWM,Street Management,Environment Waste Management,Expenditure against earmarked reserve,1285593,A041243,"5,000.00",02/07/2014,Whitespace Work Software Ltd
North West Leicestershire District Council,31UH,HRAHRM,Housing Repairs,HRA Housing Repairs & Maintenance,Training Expenses,1286276,A000373,957.00,02/07/2014,Stephenson College
North West Leicestershire District Council,31UH,HRAHRM,Housing Repairs,HRA Housing Repairs & Maintenance,Training Expenses,1286284,A000373,"9,376.20",02/07/2014,Stephenson College
North West Leicestershire District Council,31UH,ENOP,Street Management,Environment Parks,Training Expenses,1286419,A027792,"1,789.01",02/07/2014,Keith Cook Training Services
North West Leicestershire District Council,31UH,ENOWM,Street Management,Environment Waste Management,Expenditure against earmarked reserve,1286884,A041243,"3,500.00",02/07/2014,Whitespace Work Software Ltd
North West Leicestershire District Council,31UH,ENOWM,Street Management,Environment Waste Management,Expenditure against earmarked reserve,1286885,A041243,"3,000.00",02/07/2014,Whitespace Work Software Ltd
North West Leicestershire District Council,31UH,HRAPBS,Housing,HRA Performance & Business Support,Interim Support,1287310,A041207,"1,428.56",02/07/2014,Martin Valentine
North West Leicestershire District Council,31UH,CULTEV,Leisure & Culture,Cultural Services Arts & Events,Other Miscellaneous Expenses,1287322,A038388,618.54,02/07/2014,Crocker Brothers Limited
North West Leicestershire District Council,31UH,ENOT,Street Management,Environment Transport,General Repairs,1286930,A000438,"1,217.98",02/07/2014,Cuckoo Gap Limited
North West Leicestershire District Council,31UH,ICT,Information Technology,ICT Services,Machinery & Equipment,1286935,A034157,"4,250.00",02/07/2014,Idox Software Ltd
North West Leicestershire District Council,31UH,ESS,Street Management,Environment - Street Scene,Stationery,1286936,A035478,"1,907.20",02/07/2014,Nagels UK Limited
North West Leicestershire District Council,31UH,ENOT,Street Management,Environment Transport,Transport Costs - Tyres,1286947,A033268,"1,040.00",02/07/2014,Bandvulc Tyres Ltd
North West Leicestershire District Council,31UH,ICT,Information Technology,ICT Services,Consumable Materials,1287160,A038178,539.37,02/07/2014,Antalis Limited
North West Leicestershire District Council,31UH,NACCS,Neighbourhoods & Communities,N & C Community Safety,BSC PROJECT AREA - VIOLENCE,1286934,A032786,"16,000.00",02/07/2014,Living Without Abuse
North West Leicestershire District Council,31UH,CULTEV,Leisure & Culture,Cultural Services Arts & Events,Other Miscellaneous Expenses,1287314,A037317,730.00,02/07/2014,Fools Paradise
North West Leicestershire District Council,31UH,CULTEV,Leisure & Culture,Cultural Services Arts & Events,Other Miscellaneous Expenses,1287315,A036990,698.00,02/07/2014,UKLoos.com
North West Leicestershire District Council,31UH,CHEX,Chief Exec,Chief Executive,Legal & Professional Services,1286920,A030537,"1,911.00",02/07/2014,Fields of Learning
North West Leicestershire District Council,31UH,HPLC,Leisure Centres,Hood Park Leisure Centre,Water Treatment,1286921,A001591,608.40,02/07/2014,Stowlin Ltd
North West Leicestershire District Council,31UH,HPLC,Leisure Centres,Hood Park Leisure Centre,Protective Clothing,1286926,A001386,814.30,02/07/2014,Revolution
North West Leicestershire District Council,31UH,ENOT,Street Management,Environment Transport,Purchases,1287162,A040946,"17,315.55",02/07/2014,Hall Fuels (Division of Watson Petroleum
North West Leicestershire District Council,31UH,ENOWM,Street Management,Environment Waste Management,Other Miscellaneous Expenses,1287341,A027423,"10,000.00",09/07/2014,Leicestershire County Council
North West Leicestershire District Council,31UH,ENOT,Street Management,Environment Transport,Repairs - Parts,1287376,A039355,594.90,09/07/2014,Johnston Sweepers Ltd
North West Leicestershire District Council,31UH,HRAPBS,Housing,HRA Performance & Business Support,Machinery & Equipment,1287307,A041118,500.00,09/07/2014,Modern Mindset Ltd
North West Leicestershire District Council,31UH,CHEX,Chief Exec,Chief Executive,External Legal Fees & Advice,1287371,A041332,"2,771.90",09/07/2014,Sharp Planning Plus Ltd
North West Leicestershire District Council,31UH,ENOT,Street Management,Environment Transport,Repairs - Parts,1287380,A001540,536.75,09/07/2014,Spaldings (UK) Limited
North West Leicestershire District Council,31UH,LCM,Leisure & Culture,Leisure & Cult Mangt,Other Miscellaneous Expenses,1286658,A039758,800.00,02/07/2014,Beauty and Utility Arts
North West Leicestershire District Council,31UH,CP,Communications,Corporate - Communications,Machinery & Equipment,1287770,A033612,"1,701.45",09/07/2014,4imprint Direct Limited
North West Leicestershire District Council,31UH,EEHL,Environmental Health,Environmental Health & Licensing,Training Expenses,1287381,A041558,500.00,09/07/2014,Nottingham City Council
North West Leicestershire District Council,31UH,ESS,Street Management,Environment - Street Scene,Work in Default,1287169,A031086,"1,653.00",09/07/2014,Premier Waste and Recycling
North West Leicestershire District Council,31UH,ESS,Street Management,Environment - Street Scene,Work in Default,1287170,A031086,750.00,09/07/2014,Premier Waste and Recycling
North West Leicestershire District Council,31UH,CULTEV,Leisure & Culture,Cultural Services Arts & Events,Other Miscellaneous Expenses,1287324,A027592,"3,671.30",09/07/2014,Chameleon Pro Audio T/A Lux Technical Lt
North West Leicestershire District Council,31UH,PROPCL,Property Services,Property Commercial Lettings,Postages,1287429,A008204,"3,033.00",09/07/2014,Purchase Power
North West Leicestershire District Council,31UH,ICT,Information Technology,ICT Services,Corporate IT Licences,1287377,A001298,"7,842.16",09/07/2014,Phoenix Software Limited
North West Leicestershire District Council,31UH,PROPCL,Property Services,Property Commercial Lettings,Legal & Professional Services,1287437,A000323,"13,750.00",09/07/2014,Charnwood Borough Council
North West Leicestershire District Council,31UH,HLC,Leisure Centres,Hermitage Leisure Centre,Service Contracts,1287446,A002298,525.00,09/07/2014,Wellman Thermal Services Limited
North West Leicestershire District Council,31UH,HLC,Leisure Centres,Hermitage Leisure Centre,Service Contracts,1287448,A024546,674.00,09/07/2014,Siemens Energy Services Ltd
North West Leicestershire District Council,31UH,HPLC,Leisure Centres,Hood Park Leisure Centre,Operational Equipment - Rep & Maint,1287449,A000639,669.00,09/07/2014,William Freer Ltd
North West Leicestershire District Council,31UH,HLC,Leisure Centres,Hermitage Leisure Centre,Swimming Badges,1287457,A001837,568.00,09/07/2014,ASA Awards
North West Leicestershire District Council,31UH,HRAHRM,Housing Repairs,HRA Housing Repairs & Maintenance,Protective Clothing,1287384,A009933,737.88,09/07/2014,Westbury Industrial Supplies
North West Leicestershire District Council,31UH,ICT,Information Technology,ICT Services,Admin Equipment - Maintenance,1287425,A034753,"1,115.92",09/07/2014,ANS Group Plc
North West Leicestershire District Council,31UH,LDCE,Legal & Democratic,Civic Expenses,Signs & Notices,1287468,A000438,"1,217.91",09/07/2014,Cuckoo Gap Limited
North West Leicestershire District Council,31UH,ENOP,Street Management,Environment Parks,Minor Improvements Alterations,1287492,A041444,"3,528.00",09/07/2014,Aldridge Piling Equipment (Manufacturing
North West Leicestershire District Council,31UH,PROPCL,Property Services,Property Commercial Lettings,General Repairs,1287655,A033342,527.99,09/07/2014,J Tomlinson Ltd
North West Leicestershire District Council,31UH,ENOT,Street Management,Environment Transport,Expenditure against earmarked reserve,1287698,A028261,"1,277.80",09/07/2014,TECSERV UK LIMITED
North West Leicestershire District Council,31UH,EBC,Planning & Development,Building Control,Expenditure against earmarked reserve,1286857,A002189,"1,370.80",09/07/2014,Local Government Associatio
North West Leicestershire District Council,31UH,HPLC,Leisure Centres,Hood Park Leisure Centre,Service Contracts,1286908,A041406,930.00,09/07/2014,Matrix Control Solutions
North West Leicestershire District Council,31UH,PROPCL,Property Services,Property Commercial Lettings,Internal Decorations,1287647,A003371,552.50,09/07/2014,Urban Planters Leics
North West Leicestershire District Council,31UH,EEHL,Environmental Health,Environmental Health & Licensing,Vet Inspection,1287711,A033670,740.29,16/07/2014,Eville And Jones
North West Leicestershire District Council,31UH,CHEX,Chief Exec,Chief Executive,Consultants Fees,1287888,A041333,"12,102.60",16/07/2014,V4 Services Ltd
North West Leicestershire District Council,31UH,ICT,Information Technology,ICT Services,Admin Equipment - Maintenance,1286940,A000470,591.00,16/07/2014,Dell Computer Corporation L
North West Leicestershire District Council,31UH,ICT,Information Technology,ICT Services,Administrative Equipment,1287700,A041389,"1,500.00",16/07/2014,E Recycling Ltd
North West Leicestershire District Council,31UH,ENOT,Street Management,Environment Transport,Repairs - Parts,1287810,A000522,553.52,16/07/2014,Dennis Eagle Limited
North West Leicestershire District Council,31UH,CHEX,Chief Exec,Chief Executive,Interim Support,1287871,A040743,"1,320.10",16/07/2014,Janice Milsom
North West Leicestershire District Council,31UH,CULTEV,Leisure & Culture,Cultural Services Arts & Events,Other Miscellaneous Expenses,1287814,A013049,544.00,16/07/2014,Regarde Security Ltd
North West Leicestershire District Council,31UH,ENOP,Street Management,Environment Parks,General Repairs,1287818,A037180,"1,037.65",16/07/2014,First Central Developments Limited
North West Leicestershire District Council,31UH,EBC,Planning & Development,Building Control,Expenditure against earmarked reserve,1287845,A002189,"1,370.80",16/07/2014,Local Government Associatio
North West Leicestershire District Council,31UH,ICT,Information Technology,ICT Services,Admin Equipment - Maintenance,1287852,A038473,"4,308.32",16/07/2014,Cable & Wireless Worldwide
North West Leicestershire District Council,31UH,NACCS,Neighbourhoods & Communities,N & C Community Safety,Anti Social Behaviour,1287878,A035396,"1,373.50",16/07/2014,Social Landlords Crime &
North West Leicestershire District Council,31UH,HR,Corporate Director,Human Resources,Other Miscellaneous Expenses,1287881,A000950,"24,405.00",16/07/2014,Leicestershire County Council
North West Leicestershire District Council,31UH,PROPFM,Property Services,Property Facilities Management,General Repairs,1287678,A039911,850.00,16/07/2014,Fire Proof Ltd
North West Leicestershire District Council,31UH,HLBC,Leisure Centres,Hermitage Bar & Catering,Service Contracts,1287955,A029510,766.76,16/07/2014,Siemens Financial Services Ltd
North West Leicestershire District Council,31UH,ICT,Information Technology,ICT Services,Admin Equipment - Maintenance,1287970,A032826,"1,824.58",16/07/2014,Freedom Communications (UK) Ltd
North West Leicestershire District Council,31UH,HR,Corporate Director,Human Resources,Purchases,1288018,A028625,525.00,16/07/2014,Specsavers Corporate Eyecare
North West Leicestershire District Council,31UH,ENOT,Street Management,Environment Transport,Purchases,1288024,A009933,902.24,16/07/2014,Westbury Industrial Supplies
North West Leicestershire District Council,31UH,ENOP,Street Management,Environment Parks,Operational Equipment - Purchases,1287911,A000392,"1,901.50",16/07/2014,Complete Weed Control
North West Leicestershire District Council,31UH,HPLC,Leisure Centres,Hood Park Leisure Centre,Service Contracts,1287944,A000021,758.17,16/07/2014,ADT Fire And Security
North West Leicestershire District Council,31UH,PROPFM,Property Services,Property Facilities Management,Expenditure against earmarked reserve,1288022,A033342,"16,320.55",16/07/2014,J Tomlinson Ltd
North West Leicestershire District Council,31UH,CDCC,Leisure Centres,Castle Donington Community College,Alternative Fitness Suite,1288178,A005413,505.72,16/07/2014,Elliott Group Limited
North West Leicestershire District Council,31UH,HLC,Leisure Centres,Hermitage Leisure Centre,Maintenance/Office Expenditure,1288191,A002298,525.00,16/07/2014,Wellman Thermal Services Limited
North West Leicestershire District Council,31UH,ENOWM,Street Management,Environment Waste Management,Expenditure against earmarked reserve,1287969,A041243,542.21,16/07/2014,Whitespace Work Software Ltd
North West Leicestershire District Council,31UH,PROPFM,Property Services,Property Facilities Management,Purchases,1288008,A027423,"3,618.00",16/07/2014,Leicestershire County Council
North West Leicestershire District Council,31UH,ECP,Planning & Development,Environment Community Planning,Operational Equipment,1288017,A028298,"7,825.00",16/07/2014,Halfords
North West Leicestershire District Council,31UH,ECCTV,Planning & Development,Environment - Town Centre/CCTV,Agency Staff,1288031,A038132,"4,028.99",16/07/2014,Premier Security Services (Midlands) Lim
North West Leicestershire District Council,31UH,CULTEV,Leisure & Culture,Cultural Services Arts & Events,Civic Functions,1288051,A040433,"1,309.00",16/07/2014,Quadrant Events Ltd
North West Leicestershire District Council,31UH,HRAHM,Housing,HRA Housing Management,Legal & Professional Services,1287803,A035396,698.00,23/07/2014,Social Landlords Crime &
North West Leicestershire District Council,31UH,HLC,Leisure Centres,Hermitage Leisure Centre,General Repairs,1287873,A033909,"1,516.19",23/07/2014,Audience Systems Limited
North West Leicestershire District Council,31UH,ESS,Street Management,Environment - Street Scene,Contract Payments (Other) Ext,1287932,A000438,600.00,23/07/2014,Cuckoo Gap Limited
North West Leicestershire District Council,31UH,PROPFM,Property Services,Property Facilities Management,Legal & Professional Services,1288205,A034291,500.00,23/07/2014,Valuation Office Agency
North West Leicestershire District Council,31UH,CHEX,Chief Exec,Chief Executive,Interim Support,1288459,A041465,"3,018.14",23/07/2014,Cambridgeshire County Council
North West Leicestershire District Council,31UH,HRAHM,Housing,HRA Housing Management,Legal & Professional Services,1288230,A034291,"2,731.35",23/07/2014,Valuation Office Agency
North West Leicestershire District Council,31UH,ESS,Street Management,Environment - Street Scene,Work in Default,1287174,A024295,600.00,23/07/2014,County Drains Leicester Ltd
North West Leicestershire District Council,31UH,ENOT,Street Management,Environment Transport,Repairs - Parts,1287967,A000522,553.52,23/07/2014,Dennis Eagle Limited
North West Leicestershire District Council,31UH,EEHL,Environmental Health,Environmental Health & Licensing,Vet Inspection,1288541,A033670,831.20,23/07/2014,Eville And Jones
North West Leicestershire District Council,31UH,ENOT,Street Management,Environment Transport,Purchases,1288429,A037391,745.80,23/07/2014,Emo Oil Limited
North West Leicestershire District Council,31UH,HLC,Leisure Centres,Hermitage Leisure Centre,Hospitality,1288435,A017327,530.00,23/07/2014,Roberts Coaches Limited
North West Leicestershire District Council,31UH,ENOT,Street Management,Environment Transport,General Materials,1288449,A017624,"1,082.50",23/07/2014,BPI Recycled Products
North West Leicestershire District Council,31UH,LCM,Leisure & Culture,Leisure & Cult Mangt,Training Expenses,1288453,A018837,558.00,23/07/2014,Apse
North West Leicestershire District Council,31UH,ECCTV,Planning & Development,Environment - Town Centre/CCTV,Agency Staff,1286397,A038132,"4,028.99",23/07/2014,Premier Security Services (Midlands) Lim
North West Leicestershire District Council,31UH,PROPFM,Property Services,Property Facilities Management,Purchases,1288497,A041421,"1,228.20",23/07/2014,K Russell Memorials Ltd
North West Leicestershire District Council,31UH,PROPFM,Property Services,Property Facilities Management,Purchases,1288498,A041560,"1,700.00",23/07/2014,James Toon Stonemasons
North West Leicestershire District Council,31UH,HPLC,Leisure Centres,Hood Park Leisure Centre,Equipment For Resale,1288501,A001833,897.30,23/07/2014,Zoggs International Ltd
North West Leicestershire District Council,31UH,ENOT,Street Management,Environment Transport,General Repairs,1288507,A032268,"2,750.00",23/07/2014,Axle Weight Technology Ltd
North West Leicestershire District Council,31UH,HRAOPS,Housing,HRA Older Persons Service,Alarm System Telephones,1288508,A001701,"1,158.00",23/07/2014,Tunstall Healthcare (UK) Limited
North West Leicestershire District Council,31UH,ECCTV,Planning & Development,Environment - Town Centre/CCTV,Agency Staff,1287822,A038132,"4,028.99",23/07/2014,Premier Security Services (Midlands) Lim
North West Leicestershire District Council,31UH,ESS,Street Management,Environment - Street Scene,Contract Payments (Other) Ext,1287933,A000438,"2,333.00",23/07/2014,Cuckoo Gap Limited
North West Leicestershire District Council,31UH,CHEX,Chief Exec,Chief Executive,External Legal Fees & Advice,1288211,A041332,"1,232.58",23/07/2014,Sharp Planning Plus Ltd
North West Leicestershire District Council,31UH,CULTEV,Leisure & Culture,Cultural Services Arts & Events,Other Miscellaneous Expenses,1288197,A035242,850.00,23/07/2014,Lil' Miss Pod
North West Leicestershire District Council,31UH,ENOP,Street Management,Environment Parks,External Materials,1288433,A033650,"1,620.00",23/07/2014,Plantscape Ltd
North West Leicestershire District Council,31UH,EDC,Planning & Development,Environment - Development Control,Advertising,1288436,A001395,608.66,23/07/2014,Euro RSCG People T/A Havas People Ltd
North West Leicestershire District Council,31UH,EDC,Planning & Development,Environment - Development Control,Advertising,1288438,A001395,"1,302.50",23/07/2014,Euro RSCG People T/A Havas People Ltd
North West Leicestershire District Council,31UH,ECP,Planning & Development,Environment Community Planning,Grants,1288462,A000950,"10,000.00",23/07/2014,Leicestershire County Council
North West Leicestershire District Council,31UH,EDC,Planning & Development,Environment - Development Control,Training Expenses,1288481,A041558,575.00,23/07/2014,Nottingham City Council
North West Leicestershire District Council,31UH,EBC,Planning & Development,Building Control,Fees - L.C.C.,1288528,A027423,"2,499.00",23/07/2014,Leicestershire County Council
North West Leicestershire District Council,31UH,FINPLA,Finance,Financial Planning,Legal & Professional Services,1288536,A000323,"14,000.00",23/07/2014,Charnwood Borough Council
North West Leicestershire District Council,31UH,PROPFM,Property Services,Property Facilities Management,Contract Payments (Other) Ext,1288605,A041209,"3,238.40",23/07/2014,Faithful+Gould Ltd
North West Leicestershire District Council,31UH,FINPLA,Finance,Financial Planning,Legal & Professional Services,1288537,A000323,537.50,23/07/2014,Charnwood Borough Council
North West Leicestershire District Council,31UH,PROPCL,Property Services,Property Commercial Lettings,Alt & Mtce-Fixed Plant,1288664,A039911,645.00,30/07/2014,Fire Proof Ltd
North West Leicestershire District Council,31UH,HLC,Leisure Centres,Hermitage Leisure Centre,Measham LC Lifestyle DD,1288668,A027454,"2,354.17",30/07/2014,Measham Leisure Centre
North West Leicestershire District Council,31UH,HR,Corporate Director,Human Resources,Purchases,1288610,A035521,"4,211.00",30/07/2014,PES Limited
North West Leicestershire District Council,31UH,PROPCL,Property Services,Property Commercial Lettings,Contract Cleaning,1288627,A003037,506.18,30/07/2014,Coalville Cleaning Services
North West Leicestershire District Council,31UH,HS,Housing Strategy,Community - Housing Strategy,Other Services,1288658,A027796,720.00,30/07/2014,The Cedars
North West Leicestershire District Council,31UH,HPLC,Leisure Centres,Hood Park Leisure Centre,General Repairs,1288659,A034993,750.00,30/07/2014,CSS Pools & Leisure
North West Leicestershire District Council,31UH,HPLC,Leisure Centres,Hood Park Leisure Centre,Operational Equipment,1288681,A000969,797.80,30/07/2014,J P Lennard Ltd
North West Leicestershire District Council,31UH,HR,Corporate Director,Human Resources,Employee Advertising,1288720,A001395,850.80,30/07/2014,Euro RSCG People T/A Havas People Ltd
North West Leicestershire District Council,31UH,HR,Corporate Director,Human Resources,Employee Advertising,1288721,A001395,850.80,30/07/2014,Euro RSCG People T/A Havas People Ltd
North West Leicestershire District Council,31UH,HRAPBS,Housing,HRA Performance & Business Support,Salaries - Gross Pay,1289072,A000770,"10,989.46",30/07/2014,Hinckley & Bosworth Boroug
North West Leicestershire District Council,31UH,LCM,Leisure & Culture,Leisure & Cult Mangt,Consultants Fees,1288434,A018837,"1,698.00",30/07/2014,Apse
North West Leicestershire District Council,31UH,ENOT,Street Management,Environment Transport,Purchases,1288451,A040946,"18,936.75",30/07/2014,Hall Fuels (Division of Watson Petroleum
North West Leicestershire District Council,31UH,ENOP,Street Management,Environment Parks,General Repairs,1288705,A040848,820.00,30/07/2014,Gilvar Lining Ltd
North West Leicestershire District Council,31UH,ENOT,Street Management,Environment Transport,Purchases,1288711,A035175,673.74,30/07/2014,Malvern Tyres
North West Leicestershire District Council,31UH,CULTEV,Leisure & Culture,Cultural Services Arts & Events,LSA - CLUB ACTIV8,1288715,A024642,"1,140.00",30/07/2014,Gladstone MRM Ltd
North West Leicestershire District Council,31UH,ENOWM,Street Management,Environment Waste Management,Expenditure against earmarked reserve,1289091,A041243,"3,000.00",30/07/2014,Whitespace Work Software Ltd
North West Leicestershire District Council,31UH,EBC,Planning & Development,Building Control,Fees - L.C.C.,1289109,A027423,"3,024.00",30/07/2014,Leicestershire County Council
North West Leicestershire District Council,31UH,HRAHM,Housing,HRA Housing Management,Residents Associations,1289168,A040181,538.30,30/07/2014,ADT
,,,,,,,,"1,938,988.14",,
